[Event "Titled Tuesday Blitz May 4 2021"]
[White "Sahil, Tickoo"]
[Black "Hasangatin, Ramil"]
[WhiteFideId "5019710"]
[BlackFideId "4122160"]
[WhiteElo "2099"]
[BlackElo "2430"]
[Result "0-1"]
[Round "01"]
[TimeControl "180+1"]
[Date "2021.05.04"]
[WhiteClock "0:01:28"]
[BlackClock "0:01:49"]

1. d4 {[%clk 0:03:00]}  d6 {[%clk 0:02:58]} 2. e4 {[%clk 0:03:00]}  Nf6 {[%clk 0:02:58]} 3. Nc3 {[%clk 0:03:00]}  e5 {[%clk 0:02:59]} 4. Nf3 {[%clk 0:03:00]}  Nbd7 {[%clk 0:02:57]} 5. Bc4 {[%clk 0:03:00]}  Be7 {[%clk 0:02:58]} 6. O-O {[%clk 0:03:00]}  O-O {[%clk 0:02:58]} 7. Re1 {[%clk 0:03:00]}  c6 {[%clk 0:02:58]} 8. a4 {[%clk 0:03:01]}  exd4 {[%clk 0:02:56]} 9. Nxd4 {[%clk 0:03:00]}  Ne5 {[%clk 0:02:55]} 10. Bb3 {[%clk 0:02:57]}  Re8 {[%clk 0:02:54]} 11. h3 {[%clk 0:02:56]}  Bf8 {[%clk 0:02:53]} 12. Be3 {[%clk 0:02:55]}  Ng6 {[%clk 0:02:49]} 13. Bg5 {[%clk 0:02:47]}  h6 {[%clk 0:02:47]} 14. Bd2 {[%clk 0:02:46]}  Qc7 {[%clk 0:02:46]} 15. a5 {[%clk 0:02:43]}  Bd7 {[%clk 0:02:46]} 16. Nf5 {[%clk 0:02:35]}  Bxf5 {[%clk 0:02:42]} 17. exf5 {[%clk 0:02:36]}  Nh4 {[%clk 0:02:35]} 18. Bf4 {[%clk 0:02:04]}  Nxf5 {[%clk 0:02:23]} 19. Qd3 {[%clk 0:02:03]}  Qd7 {[%clk 0:02:09]} 20. Rxe8 {[%clk 0:01:51]}  Rxe8 {[%clk 0:02:08]} 21. Rd1 {[%clk 0:01:50]}  d5 {[%clk 0:02:08]} 22. Ne2 {[%clk 0:01:31]}  Bd6 {[%clk 0:01:55]} 23. Bxd6 {[%clk 0:01:29]}  Nxd6 {[%clk 0:01:52]} 24. Nd4 {[%clk 0:01:28]}  c5 {[%clk 0:01:49]} 0-1


[Site "https://www.chess.com"]

[Event "Titled Tuesday Blitz May 4 2021"]
[White "Sargsyan, Anna M."]
[Black "Zhukov, Anton"]
[WhiteFideId "13308130"]
[BlackFideId "34187534"]
[WhiteElo "2263"]
[BlackElo "2172"]
[Result "1-0"]
[Round "01"]
[TimeControl "180+1"]
[Date "2021.05.04"]
[WhiteClock "0:00:57"]
[BlackClock "0:01:26"]

1. d4 {[%clk 0:02:58]}  Nf6 {[%clk 0:02:59]} 2. c4 {[%clk 0:02:52]}  g6 {[%clk 0:02:59]} 3. g3 {[%clk 0:02:47]}  Bg7 {[%clk 0:02:59]} 4. Bg2 {[%clk 0:02:48]}  O-O {[%clk 0:02:58]} 5. Nc3 {[%clk 0:02:48]}  d6 {[%clk 0:02:58]} 6. Nf3 {[%clk 0:02:49]}  Nbd7 {[%clk 0:02:58]} 7. O-O {[%clk 0:02:49]}  e5 {[%clk 0:02:58]} 8. e4 {[%clk 0:02:50]}  exd4 {[%clk 0:02:59]} 9. Nxd4 {[%clk 0:02:51]}  Re8 {[%clk 0:02:59]} 10. h3 {[%clk 0:02:50]}  a6 {[%clk 0:02:59]} 11. Re1 {[%clk 0:02:50]}  Rb8 {[%clk 0:02:59]} 12. Be3 {[%clk 0:02:40]}  Ne5 {[%clk 0:02:59]} 13. Qe2 {[%clk 0:02:24]}  c5 {[%clk 0:02:58]} 14. Nc2 {[%clk 0:02:22]}  Nc6 {[%clk 0:02:57]} 15. Rad1 {[%clk 0:02:20]}  Qc7 {[%clk 0:02:56]} 16. Qd2 {[%clk 0:02:16]}  Be6 {[%clk 0:02:26]} 17. b3 {[%clk 0:01:42]}  Red8 {[%clk 0:02:17]} 18. Bg5 {[%clk 0:01:36]}  b5 {[%clk 0:02:07]} 19. cxb5 {[%clk 0:01:36]}  axb5 {[%clk 0:02:08]} 20. Ne3 {[%clk 0:01:36]}  Nd4 {[%clk 0:02:08]} 21. Bxf6 {[%clk 0:01:32]}  Bxf6 {[%clk 0:01:34]} 22. Ned5 {[%clk 0:01:31]}  Qb7 {[%clk 0:01:31]} 23. Nxf6+ {[%clk 0:01:30]}  Kg7 {[%clk 0:01:31]} 24. Ncd5 {[%clk 0:01:21]}  Ra8 {[%clk 0:01:29]} 25. Qg5 {[%clk 0:00:59]}  h6 {[%clk 0:01:26]} 26. Nh5+ {[%clk 0:00:57]} 1-0


[Site "https://www.chess.com"]

[Event "Titled Tuesday Blitz May 4 2021"]
[White "Sarkar, Justin"]
[Black "Czopor, Maciej"]
[WhiteFideId "2010011"]
[BlackFideId "21805431"]
[WhiteElo "2140"]
[BlackElo "1939"]
[Result "1-0"]
[Round "01"]
[TimeControl "180+1"]
[Date "2021.05.04"]
[WhiteClock "0:00:01"]
[BlackClock "0:00:07"]

1. d4 {[%clk 0:02:31]}  Nf6 {[%clk 0:02:59]} 2. c4 {[%clk 0:02:31]}  e6 {[%clk 0:02:59]} 3. Nf3 {[%clk 0:02:24]}  d5 {[%clk 0:02:51]} 4. Bg5 {[%clk 0:02:14]}  Bb4+ {[%clk 0:02:47]} 5. Nbd2 {[%clk 0:01:56]}  O-O {[%clk 0:02:33]} 6. e3 {[%clk 0:01:49]}  h6 {[%clk 0:02:28]} 7. Bh4 {[%clk 0:01:43]}  b6 {[%clk 0:02:26]} 8. a3 {[%clk 0:01:37]}  Bd6 {[%clk 0:02:23]} 9. Bd3 {[%clk 0:01:30]}  Bb7 {[%clk 0:02:23]} 10. O-O {[%clk 0:01:28]}  Nbd7 {[%clk 0:02:12]} 11. b4 {[%clk 0:01:12]}  c5 {[%clk 0:02:03]} 12. bxc5 {[%clk 0:01:06]}  bxc5 {[%clk 0:02:03]} 13. Rb1 {[%clk 0:01:06]}  Rb8 {[%clk 0:02:03]} 14. Qa4 {[%clk 0:00:41]}  Qc7 {[%clk 0:01:36]} 15. Qxa7 {[%clk 0:00:20]}  Ne4 {[%clk 0:01:36]} 16. Bg3 {[%clk 0:00:14]}  Nxg3 {[%clk 0:01:31]} 17. hxg3 {[%clk 0:00:14]}  cxd4 {[%clk 0:01:01]} 18. exd4 {[%clk 0:00:13]}  dxc4 {[%clk 0:00:49]} 19. Nxc4 {[%clk 0:00:13]}  Bxf3 {[%clk 0:00:22]} 20. Qxc7 {[%clk 0:00:12]}  Bxc7 {[%clk 0:00:23]} 21. gxf3 {[%clk 0:00:12]}  Nb6 {[%clk 0:00:24]} 22. Nxb6 {[%clk 0:00:12]}  Bxb6 {[%clk 0:00:25]} 23. Rb4 {[%clk 0:00:10]}  Ba7 {[%clk 0:00:21]} 24. Rfb1 {[%clk 0:00:09]}  Rxb4 {[%clk 0:00:21]} 25. Rxb4 {[%clk 0:00:08]}  Rd8 {[%clk 0:00:22]} 26. a4 {[%clk 0:00:06]}  Bxd4 {[%clk 0:00:21]} 27. Be4 {[%clk 0:00:06]}  e5 {[%clk 0:00:18]} 28. a5 {[%clk 0:00:05]}  Rd6 {[%clk 0:00:12]} 29. Bb7 {[%clk 0:00:04]}  Bc5 {[%clk 0:00:12]} 30. Rb5 {[%clk 0:00:04]}  Ba7 {[%clk 0:00:11]} 31. Rxe5 {[%clk 0:00:04]}  Rd2 {[%clk 0:00:10]} 32. a6 {[%clk 0:00:03]}  Rxf2 {[%clk 0:00:09]} 33. Kh1 {[%clk 0:00:03]}  g6 {[%clk 0:00:07]} 34. Re8+ {[%clk 0:00:03]}  Kg7 {[%clk 0:00:07]} 35. Re7 {[%clk 0:00:03]}  Kf6 {[%clk 0:00:07]} 36. Rc7 {[%clk 0:00:03]}  Rf1+ {[%clk 0:00:05]} 37. Kg2 {[%clk 0:00:03]}  Rg1+ {[%clk 0:00:06]} 38. Kh2 {[%clk 0:00:03]}  Bf2 {[%clk 0:00:06]} 39. Bd5 {[%clk 0:00:01]}  Rxg3 {[%clk 0:00:06]} 40. Rxf7+ {[%clk 0:00:01]}  Kg5 {[%clk 0:00:07]} 41. a7 {[%clk 0:00:01]} 1-0


[Site "https://www.chess.com"]

[Event "Titled Tuesday Blitz May 4 2021"]
[White "Schmakel, Sam"]
[Black "Homiakova, Elena"]
[WhiteFideId "2039311"]
[BlackFideId "13507761"]
[WhiteElo "2356"]
[BlackElo "2291"]
[Result "1-0"]
[Round "01"]
[TimeControl "180+1"]
[Date "2021.05.04"]
[WhiteClock "0:00:04"]
[BlackClock "0:00:01"]

1. d4 {[%clk 0:02:59]}  Nf6 {[%clk 0:02:59]} 2. c4 {[%clk 0:02:55]}  c5 {[%clk 0:02:59]} 3. d5 {[%clk 0:02:55]}  b5 {[%clk 0:02:59]} 4. cxb5 {[%clk 0:02:56]}  a6 {[%clk 0:02:59]} 5. bxa6 {[%clk 0:02:56]}  Bxa6 {[%clk 0:03:00]} 6. Nc3 {[%clk 0:02:56]}  d6 {[%clk 0:03:00]} 7. e4 {[%clk 0:02:56]}  Bxf1 {[%clk 0:03:01]} 8. Kxf1 {[%clk 0:02:57]}  g6 {[%clk 0:03:01]} 9. g3 {[%clk 0:02:57]}  Bg7 {[%clk 0:03:02]} 10. Kg2 {[%clk 0:02:58]}  O-O {[%clk 0:03:03]} 11. a4 {[%clk 0:02:56]}  Nbd7 {[%clk 0:03:02]} 12. Qe2 {[%clk 0:02:56]}  Ra7 {[%clk 0:02:58]} 13. Nf3 {[%clk 0:02:51]}  Qa8 {[%clk 0:02:57]} 14. Rb1 {[%clk 0:02:34]}  Rb8 {[%clk 0:02:56]} 15. b3 {[%clk 0:02:15]}  Rb4 {[%clk 0:02:39]} 16. Ba3 {[%clk 0:02:01]}  Rb6 {[%clk 0:02:15]} 17. Nd2 {[%clk 0:01:31]}  Qb8 {[%clk 0:02:06]} 18. Bb2 {[%clk 0:01:23]}  Ne8 {[%clk 0:01:49]} 19. Nb5 {[%clk 0:01:21]}  Rab7 {[%clk 0:01:46]} 20. Bxg7 {[%clk 0:01:20]}  Kxg7 {[%clk 0:01:45]} 21. Nc4 {[%clk 0:01:14]}  Ra6 {[%clk 0:01:42]} 22. Rhe1 {[%clk 0:00:57]}  Nc7 {[%clk 0:01:36]} 23. Nxc7 {[%clk 0:00:56]}  Qxc7 {[%clk 0:01:34]} 24. e5 {[%clk 0:00:57]}  dxe5 {[%clk 0:01:25]} 25. Nxe5 {[%clk 0:00:34]}  Rd6 {[%clk 0:00:58]} 26. Nc4 {[%clk 0:00:26]}  Rxd5 {[%clk 0:00:50]} 27. Qxe7 {[%clk 0:00:25]}  Qc6 {[%clk 0:00:31]} 28. Na5 {[%clk 0:00:19]}  Qb6 {[%clk 0:00:21]} 29. Nxb7 {[%clk 0:00:19]}  Qxb7 {[%clk 0:00:22]} 30. Qe4 {[%clk 0:00:18]}  Nf6 {[%clk 0:00:21]} 31. Qf3 {[%clk 0:00:18]}  Qd7 {[%clk 0:00:21]} 32. Red1 {[%clk 0:00:18]}  Rd4 {[%clk 0:00:20]} 33. Rxd4 {[%clk 0:00:15]}  cxd4 {[%clk 0:00:21]} 34. Rd1 {[%clk 0:00:15]}  h5 {[%clk 0:00:20]} 35. h3 {[%clk 0:00:14]}  Qd6 {[%clk 0:00:19]} 36. Qd3 {[%clk 0:00:13]}  Qd5+ {[%clk 0:00:19]} 37. Kg1 {[%clk 0:00:13]}  Qe6 {[%clk 0:00:19]} 38. Kh2 {[%clk 0:00:12]}  Qd5 {[%clk 0:00:15]} 39. Qxd4 {[%clk 0:00:11]}  Qxb3 {[%clk 0:00:15]} 40. a5 {[%clk 0:00:11]}  Qa2 {[%clk 0:00:13]} 41. Ra1 {[%clk 0:00:11]}  Qe2 {[%clk 0:00:10]} 42. a6 {[%clk 0:00:11]}  g5 {[%clk 0:00:09]} 43. a7 {[%clk 0:00:10]}  h4 {[%clk 0:00:07]} 44. gxh4 {[%clk 0:00:07]}  g4 {[%clk 0:00:06]} 45. a8=Q {[%clk 0:00:06]}  g3+ {[%clk 0:00:04]} 46. Kxg3 {[%clk 0:00:06]}  Kg6 {[%clk 0:00:02]} 47. Qf3 {[%clk 0:00:04]}  Nh5+ {[%clk 0:00:01]} 48. Qxh5+ {[%clk 0:00:04]} 1-0


[Site "https://www.chess.com"]

[Event "Titled Tuesday Blitz May 4 2021"]
[White "Schmidt, Harald"]
[Black "Dowgird, Filip"]
[WhiteFideId "4648358"]
[BlackFideId "1121235"]
[WhiteElo "2281"]
[BlackElo "2209"]
[Result "0-1"]
[Round "01"]
[TimeControl "180+1"]
[Date "2021.05.04"]
[WhiteClock "0:00:05"]
[BlackClock "0:00:10"]

1. a3 {[%clk 0:02:57]}  d5 {[%clk 0:02:59]} 2. b4 {[%clk 0:02:54]}  Bf5 {[%clk 0:02:59]} 3. Bb2 {[%clk 0:02:53]}  e6 {[%clk 0:02:59]} 4. d3 {[%clk 0:02:49]}  Nf6 {[%clk 0:02:59]} 5. Nd2 {[%clk 0:02:47]}  h6 {[%clk 0:02:59]} 6. g3 {[%clk 0:02:44]}  c6 {[%clk 0:02:56]} 7. Bg2 {[%clk 0:02:43]}  a5 {[%clk 0:02:56]} 8. e4 {[%clk 0:02:33]}  Bg4 {[%clk 0:02:55]} 9. f3 {[%clk 0:02:25]}  Bh5 {[%clk 0:02:55]} 10. c3 {[%clk 0:02:19]}  Nbd7 {[%clk 0:02:35]} 11. Ne2 {[%clk 0:02:18]}  Ne5 {[%clk 0:02:33]} 12. Nf4 {[%clk 0:01:51]}  g5 {[%clk 0:01:58]} 13. d4 {[%clk 0:01:51]}  Ned7 {[%clk 0:01:37]} 14. Nxh5 {[%clk 0:01:50]}  Nxh5 {[%clk 0:01:38]} 15. f4 {[%clk 0:01:45]}  Ng7 {[%clk 0:01:34]} 16. O-O {[%clk 0:01:43]}  Be7 {[%clk 0:01:24]} 17. f5 {[%clk 0:01:42]}  dxe4 {[%clk 0:01:21]} 18. fxe6 {[%clk 0:01:40]}  Nxe6 {[%clk 0:01:22]} 19. Nxe4 {[%clk 0:01:40]}  axb4 {[%clk 0:01:21]} 20. axb4 {[%clk 0:01:36]}  Rxa1 {[%clk 0:01:19]} 21. Bxa1 {[%clk 0:01:36]}  Nf6 {[%clk 0:01:07]} 22. Bb2 {[%clk 0:01:29]}  Nxe4 {[%clk 0:00:55]} 23. Bxe4 {[%clk 0:01:29]}  O-O {[%clk 0:00:54]} 24. Qh5 {[%clk 0:01:28]}  Kg7 {[%clk 0:00:43]} 25. Bc1 {[%clk 0:00:55]}  Bf6 {[%clk 0:00:29]} 26. Qg4 {[%clk 0:00:48]}  Re8 {[%clk 0:00:15]} 27. Bc2 {[%clk 0:00:40]}  Nxd4 {[%clk 0:00:15]} 28. cxd4 {[%clk 0:00:37]}  Qxd4+ {[%clk 0:00:15]} 29. Qxd4 {[%clk 0:00:36]}  Bxd4+ {[%clk 0:00:16]} 30. Kh1 {[%clk 0:00:36]}  Re2 {[%clk 0:00:16]} 31. Bb3 {[%clk 0:00:35]}  f6 {[%clk 0:00:16]} 32. Bc4 {[%clk 0:00:34]}  Rc2 {[%clk 0:00:15]} 33. Bd3 {[%clk 0:00:34]}  Rc3 {[%clk 0:00:15]} 34. Bf5 {[%clk 0:00:33]}  Rb3 {[%clk 0:00:13]} 35. Bd2 {[%clk 0:00:32]}  Rb2 {[%clk 0:00:13]} 36. Rd1 {[%clk 0:00:32]}  Be5 {[%clk 0:00:11]} 37. Be3 {[%clk 0:00:27]}  Rxb4 {[%clk 0:00:10]} 38. Rd7+ {[%clk 0:00:26]}  Kg8 {[%clk 0:00:10]} 39. Be6+ {[%clk 0:00:24]}  Kh8 {[%clk 0:00:11]} 40. Bc5 {[%clk 0:00:23]}  Rb1+ {[%clk 0:00:10]} 41. Kg2 {[%clk 0:00:23]}  Rb2+ {[%clk 0:00:10]} 42. Kh3 {[%clk 0:00:22]}  h5 {[%clk 0:00:11]} 43. Bf8 {[%clk 0:00:09]}  g4+ {[%clk 0:00:11]} 44. Bxg4 {[%clk 0:00:07]}  hxg4+ {[%clk 0:00:11]} 45. Kxg4 {[%clk 0:00:07]}  Rxh2 {[%clk 0:00:12]} 46. Kf5 {[%clk 0:00:05]}  Kg8 {[%clk 0:00:10]} 0-1


[Site "https://www.chess.com"]

[Event "Titled Tuesday Blitz May 4 2021"]
[White "Schut, Lisa"]
[Black "Mirzoev, Azer"]
[WhiteFideId "1019481"]
[BlackFideId "13400304"]
[WhiteElo "2234"]
[BlackElo "2525"]
[Result "1-0"]
[Round "01"]
[TimeControl "180+1"]
[Date "2021.05.04"]
[WhiteClock "0:00:10"]
[BlackClock "0:00:00"]

1. e4 {[%clk 0:02:59]}  c6 {[%clk 0:02:58]} 2. d4 {[%clk 0:02:57]}  d5 {[%clk 0:02:59]} 3. Nc3 {[%clk 0:02:44]}  dxe4 {[%clk 0:02:58]} 4. Nxe4 {[%clk 0:02:45]}  Bf5 {[%clk 0:02:58]} 5. Ng3 {[%clk 0:02:46]}  Bg6 {[%clk 0:02:58]} 6. h4 {[%clk 0:02:47]}  h6 {[%clk 0:02:57]} 7. Nf3 {[%clk 0:02:46]}  e6 {[%clk 0:02:57]} 8. h5 {[%clk 0:02:36]}  Bh7 {[%clk 0:02:56]} 9. Bd3 {[%clk 0:02:36]}  Bxd3 {[%clk 0:02:56]} 10. Qxd3 {[%clk 0:02:37]}  Nf6 {[%clk 0:02:55]} 11. Bd2 {[%clk 0:02:37]}  c5 {[%clk 0:02:55]} 12. O-O-O {[%clk 0:02:22]}  Nc6 {[%clk 0:02:54]} 13. Rhe1 {[%clk 0:01:54]}  cxd4 {[%clk 0:02:47]} 14. Nf5 {[%clk 0:01:54]}  Qd5 {[%clk 0:02:44]} 15. N5xd4 {[%clk 0:01:40]}  Qxa2 {[%clk 0:02:31]} 16. Nb3 {[%clk 0:01:24]}  Be7 {[%clk 0:02:23]} 17. Ne5 {[%clk 0:01:18]}  O-O {[%clk 0:02:13]} 18. Qg3 {[%clk 0:01:04]}  Kh8 {[%clk 0:01:29]} 19. Bc3 {[%clk 0:00:36]}  a5 {[%clk 0:01:14]} 20. Nd7 {[%clk 0:00:32]}  Qa4 {[%clk 0:00:16]} 21. Nxf6 {[%clk 0:00:26]}  Bxf6 {[%clk 0:00:16]} 22. Bxf6 {[%clk 0:00:19]}  gxf6 {[%clk 0:00:16]} 23. Qe3 {[%clk 0:00:19]}  Kh7 {[%clk 0:00:13]} 24. Nc5 {[%clk 0:00:19]}  Qg4 {[%clk 0:00:10]} 25. f3 {[%clk 0:00:19]}  Qg5 {[%clk 0:00:09]} 26. f4 {[%clk 0:00:20]}  Qg4 {[%clk 0:00:09]} 27. Nd7 {[%clk 0:00:17]}  Kg7 {[%clk 0:00:09]} 28. Nxf8 {[%clk 0:00:17]}  Rxf8 {[%clk 0:00:08]} 29. Rd7 {[%clk 0:00:18]}  Qxh5 {[%clk 0:00:08]} 30. Qxe6 {[%clk 0:00:17]}  Qg6 {[%clk 0:00:07]} 31. Qe3 {[%clk 0:00:15]}  Nb4 {[%clk 0:00:06]} 32. Qe4 {[%clk 0:00:14]}  b5 {[%clk 0:00:04]} 33. Qxg6+ {[%clk 0:00:14]}  Kxg6 {[%clk 0:00:04]} 34. Rb7 {[%clk 0:00:15]}  Nd5 {[%clk 0:00:03]} 35. g3 {[%clk 0:00:15]}  b4 {[%clk 0:00:02]} 36. Rb5 {[%clk 0:00:14]}  Nc7 {[%clk 0:00:02]} 37. Rxa5 {[%clk 0:00:15]}  f5 {[%clk 0:00:02]} 38. Rc5 {[%clk 0:00:15]}  Ne6 {[%clk 0:00:02]} 39. Rc4 {[%clk 0:00:15]}  Rb8 {[%clk 0:00:01]} 40. Kb1 {[%clk 0:00:15]}  Kh5 {[%clk 0:00:02]} 41. Re5 {[%clk 0:00:15]}  Kg4 {[%clk 0:00:02]} 42. Rd5 {[%clk 0:00:13]}  h5 {[%clk 0:00:02]} 43. Rd7 {[%clk 0:00:13]}  Nd8 {[%clk 0:00:00]} 44. Rcd4 {[%clk 0:00:10]} 1-0


[Site "https://www.chess.com"]

[Event "Titled Tuesday Blitz May 4 2021"]
[White "Sevian, Samuel"]
[Black "Manukian, Artak"]
[WhiteFideId "2040506"]
[BlackFideId "13301373"]
[WhiteElo "2972"]
[BlackElo "2461"]
[Result "1-0"]
[Round "01"]
[TimeControl "180+1"]
[Date "2021.05.04"]
[WhiteClock "0:01:36"]
[BlackClock "0:00:43"]

1. e4 {[%clk 0:03:00]}  c6 {[%clk 0:02:59]} 2. d4 {[%clk 0:03:00]}  d5 {[%clk 0:03:00]} 3. Nc3 {[%clk 0:03:01]}  dxe4 {[%clk 0:03:00]} 4. Nxe4 {[%clk 0:03:02]}  Nf6 {[%clk 0:03:00]} 5. Nxf6+ {[%clk 0:03:02]}  exf6 {[%clk 0:03:00]} 6. Bd3 {[%clk 0:03:03]}  Bd6 {[%clk 0:02:59]} 7. Qh5 {[%clk 0:03:02]}  g6 {[%clk 0:02:53]} 8. Qh6 {[%clk 0:03:02]}  Bf8 {[%clk 0:02:51]} 9. Qh4 {[%clk 0:03:01]}  h5 {[%clk 0:02:39]} 10. Nf3 {[%clk 0:02:59]}  Bg7 {[%clk 0:02:34]} 11. O-O {[%clk 0:02:58]}  O-O {[%clk 0:02:34]} 12. Re1 {[%clk 0:02:58]}  Na6 {[%clk 0:02:33]} 13. c3 {[%clk 0:02:57]}  Nc7 {[%clk 0:02:32]} 14. h3 {[%clk 0:02:57]}  Nd5 {[%clk 0:02:32]} 15. Bd2 {[%clk 0:02:56]}  b5 {[%clk 0:02:27]} 16. Re2 {[%clk 0:02:56]}  Re8 {[%clk 0:02:24]} 17. Rxe8+ {[%clk 0:02:54]}  Qxe8 {[%clk 0:02:23]} 18. Re1 {[%clk 0:02:55]}  Be6 {[%clk 0:02:19]} 19. Qg3 {[%clk 0:02:50]}  Qd7 {[%clk 0:02:17]} 20. Nh4 {[%clk 0:02:50]}  Ne7 {[%clk 0:01:56]} 21. a3 {[%clk 0:02:40]}  a5 {[%clk 0:01:51]} 22. Nf3 {[%clk 0:02:34]}  Re8 {[%clk 0:01:46]} 23. Nh4 {[%clk 0:02:26]}  Kf8 {[%clk 0:01:30]} 24. Qf3 {[%clk 0:02:21]}  Qd5 {[%clk 0:01:26]} 25. Be4 {[%clk 0:02:19]}  Qd7 {[%clk 0:01:21]} 26. Qd1 {[%clk 0:02:19]}  a4 {[%clk 0:01:18]} 27. Nf3 {[%clk 0:02:18]}  Nf5 {[%clk 0:01:16]} 28. Bf4 {[%clk 0:02:15]}  Nd6 {[%clk 0:01:15]} 29. Bd3 {[%clk 0:02:02]}  Bd5 {[%clk 0:01:15]} 30. Rxe8+ {[%clk 0:02:01]}  Kxe8 {[%clk 0:01:15]} 31. Nd2 {[%clk 0:02:00]}  Qe6 {[%clk 0:01:05]} 32. Bxd6 {[%clk 0:02:00]}  Qxd6 {[%clk 0:01:05]} 33. c4 {[%clk 0:02:01]}  bxc4 {[%clk 0:01:03]} 34. Nxc4 {[%clk 0:02:02]}  Bxc4 {[%clk 0:01:01]} 35. Bxc4 {[%clk 0:01:58]}  f5 {[%clk 0:01:01]} 36. d5 {[%clk 0:01:54]}  Kf8 {[%clk 0:00:49]} 37. Qxa4 {[%clk 0:01:51]}  cxd5 {[%clk 0:00:45]} 38. Qa8+ {[%clk 0:01:36]}  Ke7 {[%clk 0:00:43]} 39. Bxd5 {[%clk 0:01:37]}  Bxb2 {[%clk 0:00:43]} 40. Qb7+ {[%clk 0:01:37]}  Kf6 {[%clk 0:00:43]} 41. Qxb2+ {[%clk 0:01:36]} 1-0


[Site "https://www.chess.com"]

[Event "Titled Tuesday Blitz May 4 2021"]
[White "Shahinyan, David"]
[Black "Cunjalo, Faris"]
[WhiteFideId "13304380"]
[BlackFideId "14410710"]
[WhiteElo "2372"]
[BlackElo "2234"]
[Result "0-1"]
[Round "01"]
[TimeControl "180+1"]
[Date "2021.05.04"]
[WhiteClock "0:00:17"]
[BlackClock "0:00:24"]

1. e4 {[%clk 0:02:58]}  c6 {[%clk 0:02:54]} 2. Nf3 {[%clk 0:02:55]}  d5 {[%clk 0:02:54]} 3. d3 {[%clk 0:02:56]}  Qc7 {[%clk 0:02:54]} 4. Nbd2 {[%clk 0:02:51]}  e5 {[%clk 0:02:54]} 5. Be2 {[%clk 0:02:51]}  Bd6 {[%clk 0:02:54]} 6. O-O {[%clk 0:02:51]}  Nf6 {[%clk 0:02:55]} 7. c3 {[%clk 0:02:52]}  O-O {[%clk 0:02:55]} 8. b4 {[%clk 0:02:50]}  a5 {[%clk 0:02:55]} 9. bxa5 {[%clk 0:02:30]}  Rxa5 {[%clk 0:02:49]} 10. Qc2 {[%clk 0:02:27]}  Re8 {[%clk 0:02:43]} 11. Bb2 {[%clk 0:02:25]}  Bg4 {[%clk 0:02:40]} 12. h3 {[%clk 0:02:21]}  Bh5 {[%clk 0:02:40]} 13. a4 {[%clk 0:02:18]}  Nbd7 {[%clk 0:02:38]} 14. Nb3 {[%clk 0:02:03]}  Raa8 {[%clk 0:02:31]} 15. Rfe1 {[%clk 0:01:56]}  Bg6 {[%clk 0:02:10]} 16. Nfd2 {[%clk 0:01:38]}  Nc5 {[%clk 0:02:03]} 17. Nxc5 {[%clk 0:01:33]}  Bxc5 {[%clk 0:02:04]} 18. Bf3 {[%clk 0:01:33]}  dxe4 {[%clk 0:01:23]} 19. dxe4 {[%clk 0:01:26]}  h6 {[%clk 0:01:22]} 20. Nc4 {[%clk 0:01:21]}  Nh7 {[%clk 0:01:19]} 21. h4 {[%clk 0:01:15]}  Nf6 {[%clk 0:01:14]} 22. Rad1 {[%clk 0:01:09]}  Qe7 {[%clk 0:01:13]} 23. g3 {[%clk 0:01:07]}  Qe6 {[%clk 0:01:10]} 24. Ne3 {[%clk 0:01:02]}  Bxe3 {[%clk 0:00:55]} 25. Rxe3 {[%clk 0:01:01]}  Qc4 {[%clk 0:00:55]} 26. Ra1 {[%clk 0:00:54]}  Red8 {[%clk 0:00:52]} 27. Qe2 {[%clk 0:00:47]}  Rxa4 {[%clk 0:00:45]} 28. Rxa4 {[%clk 0:00:42]}  Qxa4 {[%clk 0:00:46]} 29. g4 {[%clk 0:00:43]}  Qa6 {[%clk 0:00:31]} 30. Qxa6 {[%clk 0:00:35]}  bxa6 {[%clk 0:00:31]} 31. g5 {[%clk 0:00:36]}  hxg5 {[%clk 0:00:32]} 32. hxg5 {[%clk 0:00:34]}  Nh7 {[%clk 0:00:32]} 33. Ba3 {[%clk 0:00:32]}  Nxg5 {[%clk 0:00:31]} 34. Bg2 {[%clk 0:00:28]}  Ne6 {[%clk 0:00:29]} 35. Bf1 {[%clk 0:00:22]}  Rd1 {[%clk 0:00:28]} 36. Rd3 {[%clk 0:00:18]}  Ra1 {[%clk 0:00:25]} 37. Bd6 {[%clk 0:00:18]}  Bxe4 {[%clk 0:00:24]} 38. Re3 {[%clk 0:00:17]}  Bd5 {[%clk 0:00:24]} 39. Bxe5 {[%clk 0:00:17]}  Bc4 {[%clk 0:00:24]} 0-1


[Site "https://www.chess.com"]

[Event "Titled Tuesday Blitz May 4 2021"]
[White "Shimelkov, Vasiliy"]
[Black "Buscar, Michael"]
[WhiteFideId "13701630"]
[BlackFideId "2603616"]
[WhiteElo "2073"]
[BlackElo "2010"]
[Result "1-0"]
[Round "01"]
[TimeControl "180+1"]
[Date "2021.05.04"]
[WhiteClock "0:00:36"]
[BlackClock "0:00:14"]

1. d4 {[%clk 0:03:00]}  Nf6 {[%clk 0:02:59]} 2. c4 {[%clk 0:03:00]}  g6 {[%clk 0:03:00]} 3. Nf3 {[%clk 0:02:59]}  Bg7 {[%clk 0:03:00]} 4. Nc3 {[%clk 0:02:58]}  d6 {[%clk 0:02:59]} 5. e4 {[%clk 0:02:58]}  O-O {[%clk 0:02:59]} 6. Be2 {[%clk 0:02:58]}  e5 {[%clk 0:02:59]} 7. dxe5 {[%clk 0:02:58]}  dxe5 {[%clk 0:02:58]} 8. Qxd8 {[%clk 0:02:58]}  Rxd8 {[%clk 0:02:59]} 9. Bg5 {[%clk 0:02:56]}  h6 {[%clk 0:02:53]} 10. Bxf6 {[%clk 0:02:55]}  Bxf6 {[%clk 0:02:53]} 11. Nd5 {[%clk 0:02:55]}  Rxd5 {[%clk 0:02:50]} 12. cxd5 {[%clk 0:02:55]}  c6 {[%clk 0:02:45]} 13. Rc1 {[%clk 0:02:51]}  Bd7 {[%clk 0:02:45]} 14. O-O {[%clk 0:02:50]}  Bg4 {[%clk 0:02:38]} 15. Rfd1 {[%clk 0:02:44]}  Kg7 {[%clk 0:02:34]} 16. h3 {[%clk 0:02:40]}  Bd7 {[%clk 0:02:24]} 17. b4 {[%clk 0:02:31]}  a6 {[%clk 0:02:05]} 18. a4 {[%clk 0:02:27]}  cxd5 {[%clk 0:02:01]} 19. exd5 {[%clk 0:02:25]}  Bxa4 {[%clk 0:02:01]} 20. Rd2 {[%clk 0:02:21]}  Nd7 {[%clk 0:02:00]} 21. Rc7 {[%clk 0:02:15]}  e4 {[%clk 0:01:41]} 22. Nd4 {[%clk 0:02:07]}  Nb6 {[%clk 0:01:41]} 23. Ne6+ {[%clk 0:02:00]}  Kg8 {[%clk 0:01:41]} 24. Nc5 {[%clk 0:01:53]}  Bc3 {[%clk 0:01:17]} 25. Nxa4 {[%clk 0:01:46]}  Nxa4 {[%clk 0:01:14]} 26. Ra2 {[%clk 0:01:36]}  Be5 {[%clk 0:01:05]} 27. Rxb7 {[%clk 0:01:21]}  Nc3 {[%clk 0:01:01]} 28. Rc2 {[%clk 0:01:08]}  Nxd5 {[%clk 0:00:57]} 29. Rc5 {[%clk 0:01:04]}  Nf4 {[%clk 0:00:55]} 30. Bc4 {[%clk 0:01:02]}  Bd6 {[%clk 0:00:46]} 31. Rc6 {[%clk 0:00:57]}  Rd8 {[%clk 0:00:42]} 32. Rxf7 {[%clk 0:00:53]}  Kh8 {[%clk 0:00:39]} 33. Rxd6 {[%clk 0:00:47]}  Nxh3+ {[%clk 0:00:37]} 34. gxh3 {[%clk 0:00:47]}  Rxd6 {[%clk 0:00:38]} 35. Rb7 {[%clk 0:00:45]}  g5 {[%clk 0:00:32]} 36. Kg2 {[%clk 0:00:45]}  h5 {[%clk 0:00:31]} 37. Kf1 {[%clk 0:00:45]}  Rc6 {[%clk 0:00:26]} 38. Be2 {[%clk 0:00:43]}  Rc3 {[%clk 0:00:24]} 39. Bxa6 {[%clk 0:00:41]}  Rxh3 {[%clk 0:00:24]} 40. b5 {[%clk 0:00:41]}  Ra3 {[%clk 0:00:22]} 41. Ra7 {[%clk 0:00:39]}  g4 {[%clk 0:00:20]} 42. b6 {[%clk 0:00:38]}  h4 {[%clk 0:00:13]} 43. b7 {[%clk 0:00:37]}  Rb3 {[%clk 0:00:14]} 44. Ra8+ {[%clk 0:00:37]}  Kg7 {[%clk 0:00:14]} 45. b8=Q {[%clk 0:00:37]}  Rxb8 {[%clk 0:00:14]} 46. Rxb8 {[%clk 0:00:37]}  Kf6 {[%clk 0:00:14]} 47. Rh8 {[%clk 0:00:37]}  Kg5 {[%clk 0:00:14]} 48. Kg2 {[%clk 0:00:36]} 1-0


[Site "https://www.chess.com"]